[Event "45th FIDE Olympiad 2024"]
[Site "Budapest"]
[Date "2024.09.19"]
[Round "8.62"]
[White "Fier, Alexandr"]
[Black "Naiditsch, Arkadij"]
[Result "1/2-1/2"]
[ECO "C67"]
[WhiteElo "2551"]
[BlackElo "2643"]
[Annotator "TA"]
[PlyCount "98"]
[EventDate "2024.09.05"]
[EventType "team-tourn"]
[EventCountry "HUN"]
[SourceTitle "playchess.com"]
[Source "ChessBase"]
[SourceQuality "1"]
[WhiteTeam "Brazil"]
[BlackTeam "Bulgaria"]
[WhiteTeamCountry "BRA"]
[BlackTeamCountry "BUL"]
[TimeControl "40/5400+30:1800+30"]

{[%evp 18,98,16,16,20,18,21,13,45,51,37,11,47,28,30,34,38,23,31,17,30,24,29,0,0,0,0,0,0,0,0,0,0,0,0,0,0,0,0,0,0,0,0,0,0,0,0,0,0,0,0,0,0,0,0,0,0,0,0,0,0,0,0,0,0,0,0,0,0,0,0,0,0,0,0,0,408,0,0,0,0,-9,-28]} 1. e4 {[%emt 0:00:04]} e5 {[%emt 0:00:07]} 2. Nf3 {[%emt 0:00:03]} Nc6 {[%emt 0:00:08]} 3. Bb5 {[%emt 0:00:04]} Nf6 {[%emt 0:00:21]} 4. O-O {[%emt 0:00:05][%cal Bh1f1,Bf1e1,Be1e5][%mdl 32]} Nxe4 {[%emt 0:00:38]} 5. Re1 {[%emt 0:00:04]} Nd6 {[%emt 0:00:31]} 6. Nxe5 {[%emt 0:00:06]} Be7 {[%emt 0:00:30]} 7. Bf1 {[%emt 0:00:05]} Nxe5 {[%emt 0:00:59]} 8. Rxe5 {[%emt 0:00:05]} O-O {[%emt 0:00:10]} 9. d4 {[%emt 0:00:02]} Bf6 {[%emt 0:01:38]} 10. Re1 {[%emt 0:06:04]} Re8 {[%emt 0:01:02]} 11. c3 {[%emt 0:00:05]} Rxe1 {[%emt 0:02:37]} 12. Qxe1 {[%emt 0:00:03]} Qe7 {[%emt 0:09:13]} 13. Qxe7 {[%emt 0:08:31]} Bxe7 {[%emt 0:01:54]} 14. a4 {[%emt 0:00:02][%cal Ba2a4,Ba4a5][%mdl 32]} b6 {[%emt 0:03:39][%cal Bb7b6,Bb6b5][%mdl 32]} 15. a5 {[%emt 0:01:13]} Bb7 {[%emt 0:06:42]} 16. Bf4 {[%emt 0:00:12]} g5 {[%emt 0:00:24]} 17. Bxd6 {[%emt 0:04:57]} Bxd6 {[%emt 0:00:10]} 18. Nd2 {[%emt 0:00:03]} Bf8 {[%emt 0:10:05]} 19. Nc4 {[%emt 0:08:08]} b5 {[%emt 0:07:14]} 20. a6 {[%emt 0:04:26]} Bc8 {[%emt 0:03:37]} 21. Ne3 {[%emt 0:04:45]} c6 {[%emt 0:00:29]} 22. Bd3 {[%emt 0:03:44]} d5 {[%emt 0:03:21]} 23. b4 {[%emt 0:00:13]} h5 {[%emt 0:05:12]} 24. g3 {[%emt 0:02:11]} Kg7 {[%emt 0:04:06]} 25. Bf5 {[%emt 0:05:01]} Bxf5 {[%emt 0:02:25]} 26. Nxf5+ $11 {[%emt 0:00:04][%mdl 4096] Endgame. KRB-KRN} Kg6 {[%emt 0:00:14]} 27. Ne3 {[%emt 0:00:06]} Re8 {[%emt 0:02:14]} 28. Kf1 {[%emt 0:00:06]} g4 {[%emt 0:05:46]} 29. Re1 {[%emt 0:04:40]} Re4 {[%emt 0:09:11]} 30. Nc2 {[%emt 0:00:27] [#] Rxe4 would now be deadly.} Kf5 {[%emt 0:01:48]} 31. Na1 {[%emt 0:01:03]} Ke6 {[%emt 0:08:18]} 32. Nb3 {[%emt 0:00:57]} f5 {[%emt 0:00:31]} 33. Nd2 {[%emt 0:02:27]} Rxe1+ {[%emt 0:00:12]} 34. Kxe1 {[%emt 0:00:03] KB-KN} f4 {[%emt 0:00:13]} 35. Ke2 {[%emt 0:01:20]} Bd6 {[%emt 0:00:14]} 36. Nb3 {[%emt 0:01:12]} Bc7 {[%emt 0:00:56]} 37. Nd2 {[%emt 0:09:06]} Kf5 {[%emt 0:00:36]} 38. Nf1 {[%emt 0:00:55]} Bd8 {[%emt 0:04:30]} 39. Nd2 {[%emt 0:07:19]} h4 {[%emt 0:00:19]} 40. Kd3 {[%emt 0:03:20]} Kg5 {[%emt 0:06:21]} 41. Nf1 {[%emt 0:31:05]} Bc7 {[%emt 0:30:22]} 42. Ke2 {[%emt 0:00:22]} Bd6 {[%emt 0:00:58]} 43. Kd3 {[%emt 0:00:09]} Be7 {[%emt 0:00:00]} 44. Nd2 {[%emt 0:00:00]} Kf5 {[%emt 0:00:00]} 45. Ke2 {[%emt 0:00:00]} Bg5 {[%emt 0:00:00]} 46. Nb3 {[%emt 0:00:00] aiming for Na5.} Bd8 {[%emt 0:00:00][%mdl 8192] [#]} (46... hxg3 $11 47. hxg3 f3+ 48. Kd1 Ke6) 47. Nd2 $2 {[%emt 0:00:00]} (47. gxh4 $1 $18 {Black must now prevent f3.} f3+ (47... Bxh4 $2 {perishes.} 48. Na5 $18) 48. Ke3) 47... Bc7 {[%emt 0:00:00] The position is equal.} 48. Nf1 {[%emt 0:00:00]} Kg5 {[%emt 0:00:00]} 49. Kd3 {[%emt 0:00:00]} Bd6 {[%emt 0:00:31] Weighted Error Value: White=0.17 (very precise) /Black=0.31.  Loses game:     	---       	Black=1      Missed win:     	White=1     	---        Inaccurate:     	White=2     	Black=2      OK:         	White=23    	Black=9} 1/2-1/2

[Event "45th FIDE Olympiad 2024"]
[Site "Budapest"]
[Date "2024.09.19"]
[Round "8.62"]
[White "Salvadora, Angelo"]
[Black "Tsephe, Lebajoa"]
[Result "0-1"]
[WhiteElo "1812"]
[BlackElo "1900"]
[PlyCount "76"]
[EventDate "2024.09.05"]
[EventType "team-tourn"]
[EventCountry "HUN"]
[WhiteTeam "Palau"]
[BlackTeam "Lesotho"]
[WhiteTeamCountry "PAL"]
[BlackTeamCountry "LES"]
[TimeControl "40/5400+30:1800+30"]

1. e4 c5 2. Nf3 d6 3. Bc4 Nf6 4. Ng5 e6 5. d3 a6 6. a4 Be7 7. O-O h6 8. Nh3 d5 9. exd5 exd5 10. Bb3 Bxh3 11. gxh3 O-O 12. Bf4 Nc6 13. c3 Bd6 14. Bg3 Qd7 15. Kg2 Ne7 16. Nd2 Ng6 17. f4 Ne7 18. Nf3 Nf5 19. Qd2 d4 20. cxd4 cxd4 21. Bf2 Nh5 22. Ne5 Bxe5 23. fxe5 g5 24. Rg1 Nf4+ 25. Kf1 Nxh3 26. Rg2 Nxf2 27. Rxf2 Ne3+ 28. Ke2 Qg4+ 29. Rf3 Rae8 30. Qa5 Nf5 31. Raf1 Nh4 32. Qc7 Nxf3 33. Rxf3 Qh5 34. Bd5 g4 35. Rf1 Qxe5+ 36. Qxe5 Rxe5+ 37. Be4 f5 38. Rg1 h5 {0-} 0-1

[Event "45th FIDE Olympiad 2024"]
[Site "Budapest"]
[Date "2024.09.19"]
[Round "8.63"]
[White "Petkov, Momchil"]
[Black "Quintiliano, Renato R."]
[Result "1/2-1/2"]
[ECO "D27"]
[WhiteElo "2540"]
[BlackElo "2499"]
[Annotator "TA"]
[PlyCount "90"]
[EventDate "2024.09.05"]
[EventType "team-tourn"]
[EventCountry "HUN"]
[SourceTitle "playchess.com"]
[Source "ChessBase"]
[SourceQuality "1"]
[WhiteTeam "Bulgaria"]
[BlackTeam "Brazil"]
[WhiteTeamCountry "BUL"]
[BlackTeamCountry "BRA"]
[TimeControl "40/5400+30:1800+30"]

{[%evp 11,90,22,27,16,11,0,26,21,31,0,47,22,17,8,37,-18,24,0,8,-14,-8,-17,-13,-20,7,0,10,-12,-17,-21,-9,-27,-15,-55,-47,-35,-52,-52,-27,-44,-43,-70,-52,-51,-59,-66,-50,-50,-51,-58,-59,-56,-70,-78,0,0,0,0,0,0,0,0,0,-8,-8,-8,-8,-8,-8,-11,-15,-55,-55,-55,-55,-55,0,0,0,0,0]} 1. d4 {[%emt 0:00:19]} d5 {[%emt 0:00:07]} 2. c4 {[%emt 0:00:14]} dxc4 {[%emt 0:00:07]} 3. Nf3 {[%emt 0:00:21]} Nf6 {[%emt 0:00:17]} 4. e3 {[%emt 0:00:12]} e6 {[%emt 0:00:19]} 5. Bxc4 {[%emt 0:00:14]} c5 {[%emt 0:00:20]} 6. O-O {[%emt 0:00:56]} a6 {[%emt 0:00:11]} 7. Re1 {[%emt 0:01:41]} b5 {[%emt 0:04:10]} 8. Bf1 {[%emt 0:00:45]} Bb7 {[%emt 0:00:39]} 9. a4 {[%emt 0:01:30] White has an edge.} bxa4 {[%emt 0:12:37]} 10. e4 {[%emt 0:23:06][%cal Be3e4,Be4e5][%mdl 32]} Be7 {[%emt 0:25:03]} (10... Bxe4 $11 {might be stronger.} 11. Nc3 (11. Qxa4+ Bc6 $15) 11... Bc6) 11. e5 {[%emt 0:13:03]} Nd5 {[%emt 0:06:26]} 12. dxc5 {[%emt 0:00:52]} Bxc5 {[%emt 0:01:42]} 13. Nbd2 {[%emt 0:03:49]} (13. Qxa4+ $14 Nd7 14. Qg4) 13... Nd7 {[%emt 0:04:33]} 14. Ne4 {[%emt 0:04:23]} (14. Qxa4 $5 O-O 15. Ne4 $11) 14... Be7 {[%emt 0:01:27] Repels Nfg5} 15. Bg5 {[%emt 0:14:47] [#] Black must now prevent Nd6+.} O-O {[%emt 0:02:06][%cal Od7e5]} 16. Bxe7 {[%emt 0:02:46]} Qxe7 {[%emt 0:01:43]} 17. Rxa4 {[%emt 0:01:43]} Rfb8 {[%emt 0:11:03]} 18. Qd2 {[%emt 0:02:52]} Bc6 {[%emt 0:05:40]} 19. Rxa6 {[%emt 0:03:51]} Rxa6 {[%emt 0:00:08]} 20. Bxa6 {[%emt 0:00:06][%cal Ob2b3]} Qb4 {[%emt 0:00:15]} 21. Nd4 {[%emt 0:19:35]} (21. Qxb4 {simplifies} Rxb4 22. b3 Rxb3 23. Nd6) 21... Ba8 {[%emt 0:05:26]} 22. Nc3 {[%emt 0:01:04]} Qxb2 {[%emt 0:04:34]} 23. Qxb2 {[%emt 0:00:12]} Rxb2 {[%emt 0:00:07]} 24. Nxd5 {[%emt 0:01:03]} Bxd5 {[%emt 0:00:06]} 25. Bf1 {[%emt 0:01:16]} g5 {[%emt 0:01:03]} 26. f3 {[%emt 0:01:01]} Kg7 {[%emt 0:01:11]} 27. Re3 {[%emt 0:01:17]} Nf8 {[%emt 0:02:13]} 28. g3 {[%emt 0:00:39]} Rb4 {[%emt 0:02:06]} 29. Nb5 {[%emt 0:00:21]} Ng6 {[%emt 0:01:02]} 30. Nd6 {[%emt 0:00:38]} Rb3 {[%emt 0:02:25]} 31. Rxb3 {[%emt 0:00:34]} Bxb3 $15 {[%emt 0:00:07][%mdl 4096] Endgame. KBN-KBN} 32. Ne8+ {[%emt 0:00:43]} Kf8 {[%emt 0:00:21]} (32... Kh8 $17) 33. Nf6 $11 {[%emt 0:00:24]} h6 {[%emt 0:00:44]} 34. Nd7+ {[%emt 0:00:36]} Ke7 {[%emt 0:01:35]} 35. Bb5 {[%emt 0:00:04]} Bc4 {[%emt 0:00:34]} 36. Ba4 {[%emt 0:00:05]} Ba6 {[%emt 0:00:46]} 37. Kf2 {[%emt 0:01:25]} Bc8 {[%emt 0:00:13]} 38. Nb6 {[%emt 0:00:17]} Kd8 {[%emt 0:00:20]} 39. f4 {[%emt 0:00:44]} gxf4 {[%emt 0:00:13]} 40. gxf4 {[%emt 0:00:08]} Nxf4 {[%emt 0:00:08]} 41. Bc2 {[%emt 0:04:16] Prevents Nd3+} Bb7 {[%emt 0:07:05]} 42. Nc4 {[%emt 0:03:12]} Ba6 {[%emt 0:00:31]} 43. Ne3 {[%emt 0:04:45]} h5 {[%emt 0:10:59] Dodges Ng4} (43... Be2 $1 $15) 44. Ng2 {[%emt 0:01:25]} Nxg2 {[%emt 0:05:11]} 45. Kxg2 {[%emt 0:00:08]} Ke7 {[%emt 0:00:47] Weighted Error Value: White=0.13 (very precise) /Black=0.11 (very precise) .  Mistake:       	White=1     	Black=3      Inaccurate:     	White=4     	Black=3      OK:         	White=13    	Black=15     Best:        	White=1     	Black=2} 1/2-1/2

[Event "45th FIDE Olympiad 2024"]
[Site "Budapest"]
[Date "2024.09.19"]
[Round "8.63"]
[White "Karabo, Mokete"]
[Black "Mahor Jr, Manuel"]
[Result "1/2-1/2"]
[WhiteElo "1836"]
[BlackElo "1759"]
[PlyCount "113"]
[EventDate "2024.09.05"]
[EventType "team-tourn"]
[EventCountry "HUN"]
[WhiteTeam "Lesotho"]
[BlackTeam "Palau"]
[WhiteTeamCountry "LES"]
[BlackTeamCountry "PAL"]
[TimeControl "40/5400+30:1800+30"]

1. d4 d6 2. Nf3 g6 3. g3 Bg7 4. Bg2 Nf6 5. c4 O-O 6. O-O Nbd7 7. Nc3 c5 8. d5 Nb6 9. Nd2 Rb8 10. h3 e5 11. dxe6 Bxe6 12. Qb3 d5 13. cxd5 Nfxd5 14. Qa3 Nxc3 15. bxc3 Nd5 16. Ne4 b6 17. Bd2 Qc7 18. Ng5 Rbd8 19. Nxe6 fxe6 20. Rad1 Rd7 21. e4 Ne7 22. Qb3 Kf7 23. Bf4 Qc8 24. h4 Rfd8 25. e5 Nc6 26. Rde1 h6 27. Qa4 Ne7 28. Rd1 Rxd1 29. Rxd1 Rxd1+ 30. Qxd1 Qc7 31. Qd6 Qxd6 32. exd6 Nd5 33. c4 Nxf4 34. gxf4 Bf6 35. h5 g5 36. fxg5 Bxg5 37. Be4 Bd8 38. f4 Kf6 39. Kf2 e5 40. fxe5+ Kxe5 41. Ke3 Kxd6 42. a4 Ke5 43. Kd3 Kf4 44. Bg6 Bf6 45. Be8 Bd4 46. Bg6 Ke5 47. Be8 Kd6 48. Bg6 Kc7 49. Ke4 Kb7 50. Kd5 Ka6 51. Be8 Ka5 52. Bc6 Kb4 53. Bb5 Be3 54. Ke4 Bg1 55. Kd3 Ka5 56. Kc3 a6 57. Be8 1/2-1/2

[Event "45th FIDE Olympiad 2024"]
[Site "Budapest"]
[Date "2024.09.19"]
[Round "8.64"]
[White "Do Valle Cardoso, Lucas"]
[Black "Grigorov, Grigor"]
[Result "1-0"]
[ECO "B12"]
[WhiteElo "2364"]
[BlackElo "2514"]
[Annotator "TA"]
[PlyCount "109"]
[EventDate "2024.09.05"]
[EventType "team-tourn"]
[EventCountry "HUN"]
[SourceTitle "playchess.com"]
[Source "ChessBase"]
[SourceQuality "1"]
[WhiteTeam "Brazil"]
[BlackTeam "Bulgaria"]
[WhiteTeamCountry "BRA"]
[BlackTeamCountry "BUL"]
[TimeControl "40/5400+30:1800+30"]

1. e4 {[%emt 0:00:33]} c6 {[%emt 0:00:09]} 2. d4 {[%emt 0:01:01]} d5 {[%emt 0:00:07]} 3. e5 {[%emt 0:00:03]} Bf5 {[%emt 0:00:08]} 4. Nf3 {[%emt 0:00:45]} e6 {[%emt 0:00:15]} 5. Be2 {[%emt 0:00:09]} Nd7 {[%emt 0:00:17]} 6. O-O {[%emt 0:00:26]} a5 {[%emt 0:00:14] B12: Caro-Kann: Advance Variation.} 7. Nbd2 {[%emt 0:00:21]} a4 {[%emt 0:01:22]} 8. c4 {[%emt 0:00:52]} h6 {[%emt 0:02:07]} 9. cxd5 {[%emt 0:00:06]} cxd5 {[%emt 0:00:07]} 10. Nb1 {[%emt 0:00:04]} Ne7 {[%emt 0:03:10]} 11. a3 {[%emt 0:13:14]} Nc6 {[%emt 0:03:20]} 12. Nc3 {[%emt 0:01:53]} Qa5 {[%emt 0:03:38]} 13. Bd2 $146 {[%emt 0:01:38]} ({Predecessor:} 13. Bb5 Nb6 14. Bd2 Qa7 15. Na2 Nc4 {½-½ Fier,A (2599)-Iturrizaga Bonelli,E (2637) ITA-chT GpB 54th 2023 (2)}) 13... Qa7 {[%emt 0:01:12]} 14. Bb5 {[%emt 0:07:21]} Bg4 {[%emt 0:15:51]} 15. Be3 {[%emt 0:17:56]} (15. Bxa4 Bxf3 16. Qxf3 Qxd4 $17) (15. Qxa4 $6 Qxa4 16. Bxa4 Rxa4 17. Nxa4 Bxf3 18. gxf3 Nxd4 $11) 15... Nb6 {[%emt 0:08:24]} 16. h3 {[%emt 0:01:34]} Bh5 {[%emt 0:00:36]} 17. Bd3 {[%emt 0:02:13]} Be7 {[%emt 0:02:28]} 18. g4 {[%emt 0:04:07]} (18. Qc2 $16) 18... Bg6 $14 {[%emt 0:00:11]} 19. Bxg6 {[%emt 0:00:05]} (19. Nb5 $5 Qb8 $8 20. Bxg6 fxg6 21. Qd3 $14) 19... fxg6 {[%emt 0:00:07]} 20. Qc2 {[%emt 0:05:00]} g5 {[%emt 0:12:15]} (20... O-O $14 {is superior.}) 21. Nb5 {[%emt 0:05:46]} (21. Qg6+ $16 Kd7 22. Nd2 (22. Qxg7 $2 Rag8 $19)) 21... Qb8 $14 {[%emt 0:00:08]} 22. Qg6+ {[%emt 0:00:03]} ({White should try} 22. Nd2 $1 $16) 22... Kd7 $11 {[%emt 0:00:10]} 23. Qxg7 {[%emt 0:07:14]} ({White should play} 23. Rac1 $1 $14) 23... Qf8 $11 {[%emt 0:22:05]} 24. Qxf8 {[%emt 0:00:39]} Rhxf8 {[%emt 0:00:07]} 25. Nd2 {[%emt 0:02:39]} Na5 $1 {[%emt 0:00:19]} 26. Rac1 {[%emt 0:01:07]} Nbc4 {[%emt 0:01:15]} 27. Nxc4 {[%emt 0:02:36]} (27. Rc3 $5) 27... Nxc4 {[%emt 0:00:04]} 28. Rc2 {[%emt 0:03:17]} Ra5 {[%emt 0:04:45]} 29. Nc3 {[%emt 0:01:03]} Rf3 {[%emt 0:00:17]} 30. Nd1 {[%emt 0:02:12]} Ra8 {[%emt 0:03:54]} 31. Kg2 {[%emt 0:01:24]} Raf8 {[%emt 0:00:18]} 32. Rc3 {[%emt 0:03:38]} b5 $2 {[%emt 0:02:35]} (32... Nxe3+ $14 33. Nxe3 R3f4) 33. Bxg5 $1 $18 {[%emt 0:06:14]} Rxc3 {[%emt 0:00:39]} 34. Bxe7 {[%emt 0:00:02]} Kxe7 {[%emt 0:01:37]} 35. Nxc3 {[%emt 0:00:28]} ({Inferior is} 35. bxc3 Rc8 36. Re1 Nxa3 $11) 35... Nxb2 {[%emt 0:00:06]} 36. Nxb5 {[%emt 0:02:21]} Rb8 {[%emt 0:00:23]} 37. Nc3 {[%emt 0:03:27]} Rb3 {[%emt 0:00:54]} 38. Rb1 $1 {[%emt 0:00:06]} Rxc3 {[%emt 0:00:52]} 39. Rxb2 {[%emt 0:00:02]} Rb3 {[%emt 0:01:46] [#]} 40. Rc2 $1 {[%emt 0:00:16]} Kd7 {[%emt 0:02:02] [#]} 41. Rc5 {[%emt 0:31:58]} ({White has to play} 41. f4 $1 $18 {Black must now prevent g5.} Rxa3 42. g5) 41... Rd3 $2 {[%emt 0:31:34]} (41... Rxa3 $16 {is a better defense.} 42. Ra5 Kc6) 42. Ra5 $18 {[%emt 0:00:18]} Rxd4 {[%emt 0:00:07]} 43. Ra7+ {[%emt 0:00:22]} Ke8 {[%emt 0:02:37]} 44. f3 {[%emt 0:00:00]} Rc4 {[%emt 0:00:00]} 45. Kg3 {[%emt 0:00:00]} d4 {[%emt 0:00:00]} 46. Ra6 {[%emt 0:00:00]} Ke7 {[%emt 0:00:00]} (46... Kf7 $142 47. Rd6 Ke7) 47. Rd6 $18 {[%emt 0:00:00]} Rc3 {[%emt 0:00:00]} 48. Rxd4 {[%emt 0:00:00]} Rxa3 {[%emt 0:00:00]} 49. Rd6 {[%emt 0:00:00]} Ra1 {[%emt 0:00:00]} (49... Re3 $142 50. Kf4 Rb3) 50. Ra6 $18 {[%emt 0:00:00]} a3 $2 {[%emt 0:00:00]} (50... Ra3 51. Ra7+ Kf8) 51. Ra7+ $18 {[%emt 0:00:00]} Kd8 {[%emt 0:00:00]} 52. f4 {[%emt 0:00:00]} Kc8 {[%emt 0:00:00]} 53. g5 {[%emt 0:00:00]} ({Worse is} 53. f5 a2 54. Kh2 (54. fxe6 $2 {is the wrong capture.} Rg1+ 55. Kh4 a1=Q $19) 54... exf5 55. gxf5 Re1 56. Rxa2 Rxe5 $11) 53... hxg5 {[%emt 0:00:00]} 54. fxg5 {[%emt 0:00:00]} Kb8 {[%emt 0:00:00]} 55. Ra4 {[%emt 0:00:00]} 1-0

[Event "45th FIDE Olympiad 2024"]
[Site "Budapest"]
[Date "2024.09.19"]
[Round "8.65"]
[White "Henderson De La Fuente, Lance"]
[Black "Fedoseev, Vladimir"]
[Result "0-1"]
[ECO "B10"]
[WhiteElo "2519"]
[BlackElo "2692"]
[Annotator "TA"]
[PlyCount "58"]
[EventDate "2024.09.05"]
[EventType "team-tourn"]
[EventCountry "HUN"]
[SourceTitle "playchess.com"]
[Source "ChessBase"]
[SourceQuality "1"]
[WhiteTeam "Andorra"]
[BlackTeam "Slovenia"]
[WhiteTeamCountry "AND"]
[BlackTeamCountry "SLO"]
[TimeControl "40/5400+30:1800+30"]

{[%evp 9,58,21,16,10,8,14,17,12,18,15,16,14,2,15,22,25,35,26,35,21,23,14,45,54,38,34,27,14,22,30,32,25,40,0,0,0,0,-31,0,0,13,-217,-209,-333,-343,-343,-252,-816,-836,-952,-883]} 1. e4 c6 2. Nf3 d5 3. d3 g6 4. e5 Bg7 5. d4 f6 6. exf6 exf6 7. Be2 {[%cal Bf1e2,Be2d3,Bd3c4][%mdl 32]} Na6 8. O-O {The position is equal.} Nc7 9. c4 Ne7 10. Nc3 O-O 11. Re1 g5 12. Bd3 dxc4 13. Bxc4+ Kh8 14. h3 Bf5 15. Ne4 g4 16. hxg4 Bxg4 17. Qd3 Ng6 18. Nh2 Bf5 19. Bd2 Qd7 20. Rad1 Rfe8 21. Bc1 Re7 22. Nf1 Rae8 {[%cal Rf5e4]} (22... b5 $5 23. Bb3 $8 Rae8 $11) 23. f3 Nh4 24. Nfg3 Bg6 {Hoping for ...f5.} (24... b5 $5 25. Bb3 $8 Bg6 $11) 25. Rf1 $2 {[#] Loses the game.} (25. Qf1 $11 {and White is okay.}) 25... f5 $1 $19 26. Nc3 {[#]} (26. Nc5 {keeps fighting.} Qd6 27. Kh2) 26... f4 $1 {[%mdl 512]} 27. Nge4 {[%cal Od3d2]} Nd5 {Threatens to win with ...Bh6.} 28. Ne2 $2 {[#]} (28. Qe2) 28... Nxg2 $1 {[%mdl 512]} 29. Kxg2 (29. Rf2 Rxe4) 29... Rxe4 {Weighted Error Value: White=0.59/Black=0.11 (very precise) .  Loses game:     	White=1     	---        Mistake:       	White=2     	---        Inaccurate:     	White=2     	Black=2      OK:         	White=7     	Black=11     Best:        	White=2     	---        Strong:       	---       	Black=1} 0-1

[Event "45th FIDE Olympiad 2024"]
[Site "Budapest"]
[Date "2024.09.19"]
[Round "8.65"]
[White "Yahi, Mohamed Salem"]
[Black "Fancy, Stuart"]
[Result "0-1"]
[WhiteElo "1868"]
[BlackElo "1921"]
[PlyCount "94"]
[EventDate "2024.09.05"]
[EventType "team-tourn"]
[EventCountry "HUN"]
[WhiteTeam "Mauritania"]
[BlackTeam "Papua New Guinea"]
[WhiteTeamCountry "MAU"]
[BlackTeamCountry "PNG"]
[TimeControl "40/5400+30:1800+30"]

1. e4 Nc6 2. d4 d6 3. Nf3 Nf6 4. d5 Nb8 5. Nc3 g6 6. Be3 Bg7 7. Be2 c6 8. h3 cxd5 9. exd5 O-O 10. O-O a6 11. Bc4 Nbd7 12. Rb1 b5 13. Bb3 Nc5 14. Re1 Bb7 15. Bg5 h6 16. Bh4 g5 17. Bg3 Nxb3 18. axb3 b4 19. Ne2 Bxd5 20. Ned4 Qd7 21. Qd2 e5 22. Ne2 a5 23. c4 Bxf3 24. gxf3 Qc6 25. Qe3 Nd7 26. Rbd1 Nc5 27. Nc1 f5 28. Qd2 Rad8 29. Qe2 Ne6 30. Rd5 Nd4 31. Qd3 f4 32. Bh2 a4 33. Rd1 Rc8 34. Ne2 Nf5 35. bxa4 Qxc4 36. b3 Qxd3 37. R1xd3 Rc2 38. Kf1 Rb8 39. Ke1 Kf7 40. Kd1 Ra2 41. Ra5 Ra1+ 42. Kd2 Ke6 43. Rdd5 Rc8 44. Bxf4 Ra2+ 45. Kd3 gxf4 46. Nxf4+ exf4 47. Rxf5 Be5 {0-} 0-1

[Event "45th FIDE Olympiad 2024"]
[Site "Budapest"]
[Date "2024.09.19"]
[Round "8.66"]
[White "Demchenko, Anton"]
[Black "Fluvia Poyatos, Jordi"]
[Result "1-0"]
[ECO "B12"]
[WhiteElo "2597"]
[BlackElo "2438"]
[Annotator "TA"]
[PlyCount "91"]
[EventDate "2024.09.05"]
[EventType "team-tourn"]
[EventCountry "HUN"]
[SourceTitle "playchess.com"]
[Source "ChessBase"]
[SourceQuality "1"]
[WhiteTeam "Slovenia"]
[BlackTeam "Andorra"]
[WhiteTeamCountry "SLO"]
[BlackTeamCountry "AND"]
[TimeControl "40/5400+30:1800+30"]

{[%evp 9,91,20,4,12,13,8,21,22,25,15,32,9,20,12,17,46,58,49,45,23,64,55,73,45,110,80,73,91,105,72,135,136,138,158,174,171,168,172,160,165,163,172,166,161,166,138,140,155,148,128,224,227,384,412,415,437,433,441,431,418,421,414,495,502,553,553,540,539,693,686,682,675,706,682,674,668,923,925,1278,1278,1262,1197,1212,1177]} 1. e4 c6 2. d4 d5 3. e5 c5 4. dxc5 e6 5. c3 Nd7 6. Nf3 Bxc5 7. Nbd2 {[%cal Bb1d2,Bd2b3,Bb3d4][%mdl 32]} Qc7 8. Nb3 {The position is equal.} Bb6 9. Bf4 Ne7 (9... Ngf6 {is interesting.} 10. exf6 Qxf4 11. fxg7 Rg8) 10. Nbd4 a6 {Prevents Nb5.} 11. Bd3 Nc5 12. Bc2 Bd7 13. O-O Ng6 14. Bg3 O-O 15. Qe2 h6 16. Rac1 Qc8 (16... Rfc8 $14) 17. Rfe1 Qe8 18. h4 a5 19. Nd2 f5 (19... Rc8 $142) 20. exf6 $16 Rxf6 21. N2f3 Nf4 22. Qd2 Bc7 23. Ne5 Ne4 24. Rxe4 (24. Bxe4 Bxe5 $16) 24... dxe4 25. Bxf4 Rxf4 26. Qxf4 Qh5 27. Qxe4 {[#] Intending Qh7+ and mate.} Qxe5 28. Qh7+ (28. Qxb7 Qh2+ 29. Kf1 Rb8 $17) 28... Kf7 29. g3 {White is more active.} Qf6 (29... Bb6 $16 {was necessary.} 30. Be4 Rd8) 30. Qe4 $18 Rb8 {Black is weak on the light squares} (30... Qe5 {keeps fighting.} 31. Qxb7 Rb8 32. Qf3+ Qf6) 31. Re1 {[%cal Bc1e1,Be1e3,Be3f3,Bf3f6][%mdl 32] [#] Hoping for Re3.} Bb6 {[%cal Bc7b6,Bb6d4,Bd4f6][%mdl 32]} 32. Re3 {And now Rf3 would win.} Bxd4 33. Rf3 {[%cal Oc3d4]} ({Less strong is} 33. Qxd4 Qxd4 34. cxd4 Rc8 $16) (33. cxd4 Bc6 34. Qg4 Rd8 $16) 33... Bc6 {[%cal Of6f3]} 34. Rxf6+ Bxf6 35. Qe2 b5 36. Be4 {White is clearly winning.} Bd7 37. Qe3 Rd8 38. Qa7 b4 39. Bc6 bxc3 40. bxc3 {[%cal Bb2c3,Bc3c4,Bc4c5][%mdl 32]} Ke8 41. Bxd7+ Rxd7 42. Qxa5 Rd2 43. c4 Rb2 44. c5 Kd7 45. Qa6 Be5 46. Qd3+ {Weighted Error Value: White=0.06 (flawless) /Black=0.31.  Mistake:       	---       	Black=4      Inaccurate:     	White=2     	Black=1      OK:         	White=19    	Black=11     Best:        	White=3     	Black=3} 1-0

[Event "45th FIDE Olympiad 2024"]
[Site "Budapest"]
[Date "2024.09.19"]
[Round "8.66"]
[White "McCoy, Tom"]
[Black "Abdellahi, Khaled Abdellahi"]
[Result "1-0"]
[WhiteElo "1883"]
[BlackElo "1894"]
[PlyCount "108"]
[EventDate "2024.09.05"]
[EventType "team-tourn"]
[EventCountry "HUN"]
[WhiteTeam "Papua New Guinea"]
[BlackTeam "Mauritania"]
[WhiteTeamCountry "PNG"]
[BlackTeamCountry "MAU"]
[TimeControl "40/5400+30:1800+30"]

1. e4 c5 2. c3 Nf6 3. e5 Nd5 4. Nf3 Nc6 5. Bc4 Nb6 6. Bb3 d5 7. d4 cxd4 8. cxd4 Bg4 9. Be3 e6 10. O-O Be7 11. a3 O-O 12. Nbd2 Na5 13. Ba2 Rc8 14. Rc1 Qd7 15. Qe2 Rxc1 16. Rxc1 Rc8 17. Rxc8+ Qxc8 18. b4 Nac4 19. Qd3 Bf5 20. Qb3 Nxd2 21. Bxd2 Qc2 22. Qxc2 Bxc2 23. Ne1 Ba4 24. Nd3 Bb5 25. Nc5 Bc4 26. Bb1 Bxc5 27. bxc5 Nd7 28. f4 g6 29. Bc2 Bb5 30. g4 Nb8 31. Bc3 Be2 32. h3 Bb5 33. Kf2 Nc6 34. f5 Ne7 35. fxe6 fxe6 36. Kg3 Kg7 37. h4 h6 38. a4 Bc4 39. Kf4 Nc6 40. g5 h5 41. Bd1 Ne7 42. Bc2 Nc6 43. a5 Ne7 44. Ke3 Bb5 45. Kf4 Kf7 46. Ke3 Ke8 47. Kd2 Kd7 48. Kc1 Be2 49. Ba4+ Kd8 50. Kd2 Bc4 51. a6 bxa6 52. Ba5+ Kc8 53. Be8 Bb5 54. c6 Nxc6 1-0